[Event "Late Titled Tuesday Blitz February 8 2022"]
[White "Pesotskiy, Mikhail"]
[Black "Stankovic, Ivan G"]
[WhiteFideId "34164453"]
[BlackFideId "902837"]
[WhiteElo "2010"]
[BlackElo "2195"]
[Result "0-1"]
[Round "09"]
[TimeControl "180+1"]
[Date "2022.02.09"]
[WhiteClock "0:01:08"]
[BlackClock "0:00:11"]

1. d4 {[%clk 0:02:59]}  d5 {[%clk 0:02:59]} 2. c4 {[%clk 0:02:58]}  c6 {[%clk 0:02:59]} 3. Nf3 {[%clk 0:02:58]}  Nf6 {[%clk 0:02:59]} 4. Nbd2 {[%clk 0:02:58]}  a6 {[%clk 0:02:59]} 5. e3 {[%clk 0:02:57]}  Bf5 {[%clk 0:02:59]} 6. Nh4 {[%clk 0:02:54]}  Bc8 {[%clk 0:02:48]} 7. Bd3 {[%clk 0:02:53]}  g6 {[%clk 0:02:48]} 8. O-O {[%clk 0:02:53]}  Bg7 {[%clk 0:02:49]} 9. b3 {[%clk 0:02:42]}  O-O {[%clk 0:02:48]} 10. Bb2 {[%clk 0:02:41]}  b5 {[%clk 0:02:22]} 11. Qc2 {[%clk 0:02:39]}  Nbd7 {[%clk 0:01:39]} 12. Nhf3 {[%clk 0:02:38]}  Bb7 {[%clk 0:01:23]} 13. e4 {[%clk 0:02:37]}  dxe4 {[%clk 0:01:19]} 14. Nxe4 {[%clk 0:02:38]}  Nxe4 {[%clk 0:00:59]} 15. Bxe4 {[%clk 0:02:39]}  Nf6 {[%clk 0:00:52]} 16. Bd3 {[%clk 0:02:39]}  Bc8 {[%clk 0:00:42]} 17. Rfe1 {[%clk 0:02:39]}  Bg4 {[%clk 0:00:41]} 18. Ne5 {[%clk 0:02:39]}  Qb6 {[%clk 0:00:33]} 19. Nxg4 {[%clk 0:02:20]}  Nxg4 {[%clk 0:00:32]} 20. h3 {[%clk 0:02:15]}  Nh6 {[%clk 0:00:23]} 21. Rxe7 {[%clk 0:02:11]}  Bxd4 {[%clk 0:00:20]} 22. Rae1 {[%clk 0:02:12]}  Rad8 {[%clk 0:00:14]} 23. Be4 {[%clk 0:02:09]}  Rfe8 {[%clk 0:00:10]} 24. Bf3 {[%clk 0:01:42]}  Rxe7 {[%clk 0:00:08]} 25. Rxe7 {[%clk 0:01:43]}  Nf5 {[%clk 0:00:08]} 26. Bg4 {[%clk 0:01:29]}  Bxb2 {[%clk 0:00:07]} 27. cxb5 {[%clk 0:01:29]}  Nxe7 {[%clk 0:00:07]} 28. Qxb2 {[%clk 0:01:28]}  cxb5 {[%clk 0:00:07]} 29. Qe5 {[%clk 0:01:28]}  Qd6 {[%clk 0:00:07]} 30. Qe3 {[%clk 0:01:28]}  b4 {[%clk 0:00:08]} 31. h4 {[%clk 0:01:28]}  Qd4 {[%clk 0:00:07]} 32. Qxe7 {[%clk 0:01:28]}  Rf8 {[%clk 0:00:07]} 33. Qe2 {[%clk 0:01:19]}  h5 {[%clk 0:00:06]} 34. Bf3 {[%clk 0:01:17]}  Qxh4 {[%clk 0:00:07]} 35. Qxa6 {[%clk 0:01:17]}  Qd4 {[%clk 0:00:07]} 36. Qb7 {[%clk 0:01:10]}  Kg7 {[%clk 0:00:07]} 37. Bd5 {[%clk 0:01:09]}  Qa1+ {[%clk 0:00:06]} 38. Kh2 {[%clk 0:01:07]}  Qxa2 {[%clk 0:00:07]} 39. Qxb4 {[%clk 0:01:06]}  Qxf2 {[%clk 0:00:07]} 40. Qc3+ {[%clk 0:01:05]}  Qf6 {[%clk 0:00:08]} 41. Qc7 {[%clk 0:01:04]}  Rd8 {[%clk 0:00:07]} 42. Bc4 {[%clk 0:01:04]}  Qd6+ {[%clk 0:00:07]} 43. Qxd6 {[%clk 0:01:04]}  Rxd6 {[%clk 0:00:08]} 44. Kg3 {[%clk 0:01:04]}  f5 {[%clk 0:00:08]} 45. b4 {[%clk 0:01:04]}  Rd4 {[%clk 0:00:07]} 46. Be2 {[%clk 0:01:03]}  Rxb4 {[%clk 0:00:07]} 47. Kf2 {[%clk 0:01:03]}  Kf6 {[%clk 0:00:08]} 48. g3 {[%clk 0:01:04]}  Rb2 {[%clk 0:00:08]} 49. Kf3 {[%clk 0:01:04]}  Rxe2 {[%clk 0:00:09]} 50. Kxe2 {[%clk 0:01:05]}  Ke5 {[%clk 0:00:10]} 51. Kf3 {[%clk 0:01:06]}  g5 {[%clk 0:00:10]} 52. Kf2 {[%clk 0:01:06]}  Ke4 {[%clk 0:00:10]} 53. g4 {[%clk 0:01:07]}  hxg4 {[%clk 0:00:10]} 54. Kg3 {[%clk 0:01:08]}  Ke3 {[%clk 0:00:11]} 0-1


[Site "https://www.chess.com"]

[Event "Late Titled Tuesday Blitz February 8 2022"]
[White "Rudykh, Stepan"]
[Black "Lopez Del Alamo, Antonio"]
[WhiteFideId "4180321"]
[BlackFideId "2227339"]
[WhiteElo "2152"]
[BlackElo "2082"]
[Result "0-1"]
[Round "09"]
[TimeControl "180+1"]
[Date "2022.02.09"]
[WhiteClock "0:00:05"]
[BlackClock "0:00:19"]

1. e4 {[%clk 0:03:00]}  c5 {[%clk 0:02:59]} 2. Nf3 {[%clk 0:03:00]}  e6 {[%clk 0:02:59]} 3. d4 {[%clk 0:03:00]}  cxd4 {[%clk 0:03:00]} 4. Nxd4 {[%clk 0:03:00]}  Nf6 {[%clk 0:03:01]} 5. Bd3 {[%clk 0:02:59]}  Nc6 {[%clk 0:03:01]} 6. Nxc6 {[%clk 0:02:54]}  dxc6 {[%clk 0:03:02]} 7. O-O {[%clk 0:02:50]}  e5 {[%clk 0:03:02]} 8. f4 {[%clk 0:02:43]}  Bc5+ {[%clk 0:03:01]} 9. Kh1 {[%clk 0:02:43]}  Ng4 {[%clk 0:03:02]} 10. h3 {[%clk 0:02:33]}  Qh4 {[%clk 0:02:59]} 11. Qf3 {[%clk 0:02:27]}  Nf2+ {[%clk 0:02:55]} 12. Kh2 {[%clk 0:02:23]}  h5 {[%clk 0:02:48]} 13. fxe5 {[%clk 0:02:08]}  Ng4+ {[%clk 0:02:38]} 14. Kh1 {[%clk 0:02:05]}  Nxe5 {[%clk 0:02:38]} 15. Qf4 {[%clk 0:01:57]}  Qxf4 {[%clk 0:02:35]} 16. Bxf4 {[%clk 0:01:58]}  Nxd3 {[%clk 0:02:30]} 17. cxd3 {[%clk 0:01:59]}  Be6 {[%clk 0:02:29]} 18. Nc3 {[%clk 0:01:43]}  Rd8 {[%clk 0:02:26]} 19. Rad1 {[%clk 0:01:39]}  f6 {[%clk 0:02:13]} 20. a3 {[%clk 0:01:23]}  Ke7 {[%clk 0:01:59]} 21. Rfe1 {[%clk 0:00:58]}  Rd7 {[%clk 0:01:52]} 22. Be3 {[%clk 0:00:55]}  Bxe3 {[%clk 0:01:44]} 23. Rxe3 {[%clk 0:00:55]}  Rhd8 {[%clk 0:01:43]} 24. Ne2 {[%clk 0:00:54]}  g5 {[%clk 0:01:38]} 25. d4 {[%clk 0:00:52]}  Bc4 {[%clk 0:01:35]} 26. e5 {[%clk 0:00:49]}  Bxe2 {[%clk 0:01:33]} 27. Rxe2 {[%clk 0:00:47]}  Rxd4 {[%clk 0:01:34]} 28. exf6+ {[%clk 0:00:44]}  Kxf6 {[%clk 0:01:34]} 29. Rf1+ {[%clk 0:00:41]}  Rf4 {[%clk 0:01:31]} 30. Rxf4+ {[%clk 0:00:38]}  gxf4 {[%clk 0:01:32]} 31. Kg1 {[%clk 0:00:35]}  Rd3 {[%clk 0:01:28]} 32. Kf2 {[%clk 0:00:34]}  Rb3 {[%clk 0:01:26]} 33. Rd2 {[%clk 0:00:30]}  Kf5 {[%clk 0:01:23]} 34. Ke2 {[%clk 0:00:27]}  a5 {[%clk 0:01:19]} 35. Kd1 {[%clk 0:00:25]}  a4 {[%clk 0:01:05]} 36. Kc2 {[%clk 0:00:24]}  Ke4 {[%clk 0:00:56]} 37. Re2+ {[%clk 0:00:20]}  Re3 {[%clk 0:00:54]} 38. Rd2 {[%clk 0:00:20]}  Rg3 {[%clk 0:00:53]} 39. Re2+ {[%clk 0:00:19]}  Kd5 {[%clk 0:00:52]} 40. Rd2+ {[%clk 0:00:20]}  Kc5 {[%clk 0:00:52]} 41. Rf2 {[%clk 0:00:20]}  b5 {[%clk 0:00:48]} 42. Kd2 {[%clk 0:00:18]}  f3 {[%clk 0:00:43]} 43. Rxf3 {[%clk 0:00:16]}  Rxg2+ {[%clk 0:00:43]} 44. Kc3 {[%clk 0:00:16]}  h4 {[%clk 0:00:42]} 45. Rf5+ {[%clk 0:00:16]}  Kb6 {[%clk 0:00:38]} 46. Rh5 {[%clk 0:00:08]}  Rg3+ {[%clk 0:00:38]} 47. Kc2 {[%clk 0:00:08]}  Rxh3 {[%clk 0:00:38]} 48. Kb1 {[%clk 0:00:06]}  Rh2 {[%clk 0:00:39]} 49. Rh6 {[%clk 0:00:05]}  h3 {[%clk 0:00:39]} 50. Rh5 {[%clk 0:00:05]}  Rh1+ {[%clk 0:00:38]} 51. Ka2 {[%clk 0:00:05]}  h2 {[%clk 0:00:39]} 52. Rh4 {[%clk 0:00:04]}  Kc5 {[%clk 0:00:38]} 53. Rh5+ {[%clk 0:00:04]}  Kd4 {[%clk 0:00:38]} 54. Rh4+ {[%clk 0:00:05]}  Ke3 {[%clk 0:00:39]} 55. Rh3+ {[%clk 0:00:06]}  Kf2 {[%clk 0:00:39]} 56. Rh6 {[%clk 0:00:05]}  Ke3 {[%clk 0:00:28]} 57. Re6+ {[%clk 0:00:05]}  Kd4 {[%clk 0:00:28]} 58. Rd6+ {[%clk 0:00:05]}  Kc5 {[%clk 0:00:27]} 59. Rh6 {[%clk 0:00:05]}  Kb6 {[%clk 0:00:25]} 60. Rh5 {[%clk 0:00:04]}  c5 {[%clk 0:00:24]} 61. Rh6+ {[%clk 0:00:05]}  Ka5 {[%clk 0:00:23]} 62. Rh5 {[%clk 0:00:05]}  c4 {[%clk 0:00:24]} 63. Rh8 {[%clk 0:00:05]}  b4 {[%clk 0:00:19]} 64. Ra8+ {[%clk 0:00:05]}  Kb6 {[%clk 0:00:19]} 65. Rb8+ {[%clk 0:00:05]}  Kc6 {[%clk 0:00:19]} 0-1


[Site "https://www.chess.com"]

[Event "Late Titled Tuesday Blitz February 8 2022"]
[White "Rudzinska, Michalina"]
[Black "Gerbelli Neto, Eduardo"]
[WhiteFideId "1172883"]
[BlackFideId "2103281"]
[WhiteElo "1904"]
[BlackElo "2178"]
[Result "0-1"]
[Round "09"]
[TimeControl "180+1"]
[Date "2022.02.09"]
[WhiteClock "0:00:36"]
[BlackClock "0:00:12"]

1. e4 {[%clk 0:03:00]}  e5 {[%clk 0:02:59]} 2. Nf3 {[%clk 0:02:58]}  Nc6 {[%clk 0:02:56]} 3. Nc3 {[%clk 0:02:58]}  Nf6 {[%clk 0:02:55]} 4. a4 {[%clk 0:02:56]}  Bb4 {[%clk 0:02:48]} 5. Bd3 {[%clk 0:02:55]}  d6 {[%clk 0:02:44]} 6. O-O {[%clk 0:02:55]}  Bg4 {[%clk 0:02:40]} 7. Nd5 {[%clk 0:02:54]}  Ba5 {[%clk 0:02:31]} 8. c3 {[%clk 0:02:46]}  a6 {[%clk 0:02:12]} 9. b4 {[%clk 0:02:45]}  Bb6 {[%clk 0:02:13]} 10. a5 {[%clk 0:02:45]}  Ba7 {[%clk 0:02:13]} 11. Rb1 {[%clk 0:02:40]}  Ne7 {[%clk 0:02:12]} 12. Nxf6+ {[%clk 0:02:38]}  gxf6 {[%clk 0:02:13]} 13. h3 {[%clk 0:02:39]}  Bh5 {[%clk 0:02:07]} 14. Be2 {[%clk 0:02:37]}  Rg8 {[%clk 0:02:06]} 15. Nh4 {[%clk 0:02:37]}  Bg6 {[%clk 0:01:58]} 16. Nxg6 {[%clk 0:02:26]}  Nxg6 {[%clk 0:01:56]} 17. d4 {[%clk 0:02:27]}  Qd7 {[%clk 0:01:48]} 18. f4 {[%clk 0:02:25]}  Nxf4 {[%clk 0:01:46]} 19. Bxf4 {[%clk 0:02:16]}  Qxh3 {[%clk 0:01:39]} 20. Bf3 {[%clk 0:02:03]}  exf4 {[%clk 0:01:36]} 21. e5 {[%clk 0:02:00]}  O-O-O {[%clk 0:01:31]} 22. exf6 {[%clk 0:01:58]}  Rg3 {[%clk 0:01:21]} 23. b5 {[%clk 0:01:57]}  Rdg8 {[%clk 0:01:18]} 24. Qe2 {[%clk 0:01:54]}  axb5 {[%clk 0:01:04]} 25. Rxb5 {[%clk 0:01:53]}  c6 {[%clk 0:01:00]} 26. Rh5 {[%clk 0:01:16]}  Qd7 {[%clk 0:00:36]} 27. Rxh7 {[%clk 0:01:15]}  c5 {[%clk 0:00:25]} 28. Qe7 {[%clk 0:01:14]}  cxd4 {[%clk 0:00:24]} 29. Qxd7+ {[%clk 0:01:12]}  Kxd7 {[%clk 0:00:25]} 30. Rxf7+ {[%clk 0:01:12]}  Ke6 {[%clk 0:00:23]} 31. Rxb7 {[%clk 0:01:12]}  Bc5 {[%clk 0:00:21]} 32. c4 {[%clk 0:01:06]}  d3+ {[%clk 0:00:21]} 33. Rf2 {[%clk 0:00:59]}  Rxf3 {[%clk 0:00:21]} 34. f7 {[%clk 0:00:53]}  Bxf2+ {[%clk 0:00:19]} 35. Kf1 {[%clk 0:00:53]}  Be3+ {[%clk 0:00:14]} 36. Ke1 {[%clk 0:00:48]}  Rxg2 {[%clk 0:00:13]} 37. f8=N+ {[%clk 0:00:38]}  Kf5 {[%clk 0:00:12]} 38. Rf7+ {[%clk 0:00:38]}  Ke4 {[%clk 0:00:12]} 39. Re7+ {[%clk 0:00:36]}  Kd4 {[%clk 0:00:13]} 40. Ne6+ {[%clk 0:00:36]}  Kxc4 {[%clk 0:00:13]} 41. Rc7+ {[%clk 0:00:36]}  Kd5 {[%clk 0:00:12]} 0-1


[Site "https://www.chess.com"]

[Event "Late Titled Tuesday Blitz February 8 2022"]
[White "Shoker, Samy"]
[Black "Riehle, Marco"]
[WhiteFideId "627143"]
[BlackFideId "12904392"]
[WhiteElo "2493"]
[BlackElo "2462"]
[Result "1-0"]
[Round "09"]
[TimeControl "180+1"]
[Date "2022.02.08"]
[WhiteClock "0:00:39"]
[BlackClock "0:00:42"]

1. Nf3 {[%clk 0:03:00]}  Nf6 {[%clk 0:02:51]} 2. g3 {[%clk 0:03:00]}  d5 {[%clk 0:02:47]} 3. Bg2 {[%clk 0:03:01]}  c5 {[%clk 0:02:43]} 4. c4 {[%clk 0:03:00]}  Nc6 {[%clk 0:02:42]} 5. cxd5 {[%clk 0:02:59]}  Nxd5 {[%clk 0:02:41]} 6. Nc3 {[%clk 0:02:59]}  Nc7 {[%clk 0:02:41]} 7. O-O {[%clk 0:02:57]}  e5 {[%clk 0:02:38]} 8. a3 {[%clk 0:02:58]}  Be6 {[%clk 0:02:35]} 9. b4 {[%clk 0:02:55]}  f6 {[%clk 0:02:33]} 10. bxc5 {[%clk 0:02:48]}  Bxc5 {[%clk 0:02:34]} 11. Rb1 {[%clk 0:02:47]}  Rb8 {[%clk 0:02:32]} 12. e3 {[%clk 0:02:47]}  O-O {[%clk 0:02:30]} 13. Re1 {[%clk 0:02:44]}  Qd7 {[%clk 0:02:25]} 14. Bb2 {[%clk 0:02:33]}  Rfd8 {[%clk 0:02:24]} 15. Qc2 {[%clk 0:02:27]}  Rbc8 {[%clk 0:02:21]} 16. Rbd1 {[%clk 0:02:21]}  Qf7 {[%clk 0:02:16]} 17. Rc1 {[%clk 0:02:13]}  Bf8 {[%clk 0:02:05]} 18. Qb1 {[%clk 0:02:07]}  Nd5 {[%clk 0:02:03]} 19. Ne4 {[%clk 0:02:04]}  Na5 {[%clk 0:01:57]} 20. Rxc8 {[%clk 0:02:01]}  Rxc8 {[%clk 0:01:51]} 21. d4 {[%clk 0:02:00]}  exd4 {[%clk 0:01:44]} 22. Nxd4 {[%clk 0:02:00]}  Bd7 {[%clk 0:01:44]} 23. Rc1 {[%clk 0:01:47]}  Qe8 {[%clk 0:01:40]} 24. Qa2 {[%clk 0:01:37]}  Rxc1+ {[%clk 0:01:37]} 25. Bxc1 {[%clk 0:01:38]}  Bc6 {[%clk 0:01:33]} 26. Nxf6+ {[%clk 0:01:33]}  gxf6 {[%clk 0:01:32]} 27. Bxd5+ {[%clk 0:01:33]}  Kh8 {[%clk 0:01:31]} 28. Nxc6 {[%clk 0:01:29]}  Nxc6 {[%clk 0:01:32]} 29. Bb2 {[%clk 0:01:26]}  Bg7 {[%clk 0:01:30]} 30. Qc4 {[%clk 0:01:17]}  h6 {[%clk 0:01:25]} 31. Qe4 {[%clk 0:01:14]}  Qd7 {[%clk 0:01:19]} 32. Qe6 {[%clk 0:01:08]}  Qd8 {[%clk 0:01:18]} 33. Bxc6 {[%clk 0:01:03]}  bxc6 {[%clk 0:01:15]} 34. Qxc6 {[%clk 0:01:00]}  a5 {[%clk 0:01:13]} 35. Bd4 {[%clk 0:00:59]}  Qe7 {[%clk 0:01:04]} 36. a4 {[%clk 0:00:58]}  Qb4 {[%clk 0:00:59]} 37. Bxf6 {[%clk 0:00:53]}  Bxf6 {[%clk 0:00:58]} 38. Qxf6+ {[%clk 0:00:54]}  Kg8 {[%clk 0:00:56]} 39. Qg6+ {[%clk 0:00:53]}  Kf8 {[%clk 0:00:56]} 40. Qxh6+ {[%clk 0:00:53]}  Kg8 {[%clk 0:00:51]} 41. Qg5+ {[%clk 0:00:51]}  Kh7 {[%clk 0:00:50]} 42. Qh4+ {[%clk 0:00:50]}  Kg7 {[%clk 0:00:49]} 43. Kg2 {[%clk 0:00:41]}  Qb7+ {[%clk 0:00:46]} 44. e4 {[%clk 0:00:41]}  Qf7 {[%clk 0:00:42]} 45. Qg5+ {[%clk 0:00:39]}  Kh7 {[%clk 0:00:42]} 46. Qf5+ {[%clk 0:00:40]}  Kg7 {[%clk 0:00:43]} 47. Qxf7+ {[%clk 0:00:40]}  Kh8 {[%clk 0:00:42]} 48. Qd5 {[%clk 0:00:39]} 1-0


[Site "https://www.chess.com"]

[Event "Late Titled Tuesday Blitz February 8 2022"]
[White "Stanisz, Patryk"]
[Black "Golubovskis, Maksims"]
[WhiteFideId "1123106"]
[BlackFideId "11608528"]
[WhiteElo "1876"]
[BlackElo "2066"]
[Result "1-0"]
[Round "09"]
[TimeControl "180+1"]
[Date "2022.02.09"]
[WhiteClock "0:00:13"]
[BlackClock "0:00:05"]

1. c4 {[%clk 0:02:58]}  c5 {[%clk 0:02:47]} 2. Nf3 {[%clk 0:02:57]}  Nf6 {[%clk 0:02:46]} 3. g3 {[%clk 0:02:58]}  d5 {[%clk 0:02:44]} 4. cxd5 {[%clk 0:02:58]}  Nxd5 {[%clk 0:02:45]} 5. Bg2 {[%clk 0:02:59]}  Nc6 {[%clk 0:02:43]} 6. O-O {[%clk 0:02:59]}  e5 {[%clk 0:02:42]} 7. d3 {[%clk 0:02:58]}  Be7 {[%clk 0:02:17]} 8. Nc3 {[%clk 0:02:57]}  Nc7 {[%clk 0:02:16]} 9. b3 {[%clk 0:02:24]}  Be6 {[%clk 0:02:09]} 10. Bb2 {[%clk 0:02:23]}  O-O {[%clk 0:02:07]} 11. Rc1 {[%clk 0:02:24]}  f6 {[%clk 0:02:04]} 12. Na4 {[%clk 0:02:24]}  Na6 {[%clk 0:01:17]} 13. Ba3 {[%clk 0:02:23]}  Ncb4 {[%clk 0:01:16]} 14. Qd2 {[%clk 0:02:15]}  Rc8 {[%clk 0:01:10]} 15. Rfd1 {[%clk 0:01:37]}  b5 {[%clk 0:00:50]} 16. Nc3 {[%clk 0:01:31]}  Qd7 {[%clk 0:00:35]} 17. Bb2 {[%clk 0:01:27]}  Nd5 {[%clk 0:00:34]} 18. Nxd5 {[%clk 0:01:27]}  Bxd5 {[%clk 0:00:34]} 19. Qa5 {[%clk 0:01:21]}  Nb4 {[%clk 0:00:33]} 20. a4 {[%clk 0:01:14]}  Bxb3 {[%clk 0:00:25]} 21. axb5 {[%clk 0:00:56]}  Bxd1 {[%clk 0:00:24]} 22. Rxd1 {[%clk 0:00:57]}  Rb8 {[%clk 0:00:20]} 23. Ra1 {[%clk 0:00:33]}  Rxb5 {[%clk 0:00:19]} 24. Qa4 {[%clk 0:00:32]}  Rfb8 {[%clk 0:00:18]} 25. Nd2 {[%clk 0:00:30]}  Qe8 {[%clk 0:00:11]} 26. Qxa7 {[%clk 0:00:25]}  Nxd3 {[%clk 0:00:11]} 27. exd3 {[%clk 0:00:17]}  Rxb2 {[%clk 0:00:11]} 28. Nc4 {[%clk 0:00:18]}  Rc2 {[%clk 0:00:10]} 29. Bd5+ {[%clk 0:00:17]}  Kh8 {[%clk 0:00:09]} 30. Ra2 {[%clk 0:00:11]}  Rc3 {[%clk 0:00:09]} 31. Qc7 {[%clk 0:00:09]}  Rxd3 {[%clk 0:00:08]} 32. Be4 {[%clk 0:00:06]}  Rd1+ {[%clk 0:00:08]} 33. Kg2 {[%clk 0:00:06]}  Bd6 {[%clk 0:00:07]} 34. Nxd6 {[%clk 0:00:03]}  Qe6 {[%clk 0:00:06]} 35. Nf7+ {[%clk 0:00:03]}  Kg8 {[%clk 0:00:04]} 36. Qxb8+ {[%clk 0:00:03]}  Kxf7 {[%clk 0:00:05]} 37. Ra7+ {[%clk 0:00:03]}  Rd7 {[%clk 0:00:02]} 38. Rxd7+ {[%clk 0:00:04]}  Qxd7 {[%clk 0:00:03]} 39. Qb3+ {[%clk 0:00:04]}  Ke7 {[%clk 0:00:03]} 40. Qd5 {[%clk 0:00:04]}  Qxd5 {[%clk 0:00:03]} 41. Bxd5 {[%clk 0:00:05]}  Kd6 {[%clk 0:00:04]} 42. Bc4 {[%clk 0:00:04]}  Kc6 {[%clk 0:00:04]} 43. Kf3 {[%clk 0:00:05]}  Kb6 {[%clk 0:00:03]} 44. Ke3 {[%clk 0:00:06]}  Ka5 {[%clk 0:00:04]} 45. Kd3 {[%clk 0:00:07]}  Kb4 {[%clk 0:00:05]} 46. Bg8 {[%clk 0:00:07]}  h6 {[%clk 0:00:04]} 47. Be6 {[%clk 0:00:07]}  g5 {[%clk 0:00:04]} 48. h4 {[%clk 0:00:08]}  gxh4 {[%clk 0:00:04]} 49. gxh4 {[%clk 0:00:09]}  h5 {[%clk 0:00:03]} 50. Bc4 {[%clk 0:00:10]}  Ka3 {[%clk 0:00:02]} 51. Bf7 {[%clk 0:00:10]}  Kb4 {[%clk 0:00:03]} 52. Be6 {[%clk 0:00:10]}  e4+ {[%clk 0:00:02]} 53. Kxe4 {[%clk 0:00:10]}  c4 {[%clk 0:00:03]} 54. Bxc4 {[%clk 0:00:08]}  Kxc4 {[%clk 0:00:03]} 55. Kf5 {[%clk 0:00:09]}  Kd3 {[%clk 0:00:03]} 56. Kxf6 {[%clk 0:00:10]}  Ke2 {[%clk 0:00:03]} 57. Kg5 {[%clk 0:00:11]}  Kxf2 {[%clk 0:00:04]} 58. Kxh5 {[%clk 0:00:12]}  Kf3 {[%clk 0:00:05]} 59. Kg6 {[%clk 0:00:12]}  Kf4 {[%clk 0:00:05]} 60. h5 {[%clk 0:00:13]} 1-0


[Site "https://www.chess.com"]

[Event "Late Titled Tuesday Blitz February 8 2022"]
[White "Stoleriu, George"]
[Black "Kosakowski, Jakub"]
[WhiteFideId "1227505"]
[BlackFideId "1185080"]
[WhiteElo "2203"]
[BlackElo "2476"]
[Result "0-1"]
[Round "09"]
[TimeControl "180+1"]
[Date "2022.02.08"]
[WhiteClock "0:00:16"]
[BlackClock "0:00:53"]

1. e4 {[%clk 0:02:56]}  e5 {[%clk 0:02:56]} 2. Nf3 {[%clk 0:02:56]}  Nf6 {[%clk 0:02:56]} 3. Nxe5 {[%clk 0:02:53]}  d6 {[%clk 0:02:56]} 4. Nf3 {[%clk 0:02:53]}  Nxe4 {[%clk 0:02:57]} 5. c4 {[%clk 0:02:53]}  Be7 {[%clk 0:02:56]} 6. Nc3 {[%clk 0:02:53]}  Nxc3 {[%clk 0:02:54]} 7. dxc3 {[%clk 0:02:54]}  O-O {[%clk 0:02:55]} 8. Bd3 {[%clk 0:02:55]}  Nd7 {[%clk 0:02:54]} 9. O-O {[%clk 0:02:54]}  Nf6 {[%clk 0:02:53]} 10. h3 {[%clk 0:02:54]}  Re8 {[%clk 0:02:51]} 11. Re1 {[%clk 0:02:54]}  h6 {[%clk 0:02:51]} 12. Be3 {[%clk 0:02:51]}  Be6 {[%clk 0:02:46]} 13. Nd4 {[%clk 0:02:51]}  Bf8 {[%clk 0:02:30]} 14. Qf3 {[%clk 0:02:48]}  c6 {[%clk 0:02:19]} 15. Rad1 {[%clk 0:02:46]}  Nd7 {[%clk 0:02:12]} 16. Bf4 {[%clk 0:02:44]}  Qf6 {[%clk 0:01:50]} 17. Qg3 {[%clk 0:02:20]}  Nc5 {[%clk 0:01:40]} 18. Bf1 {[%clk 0:01:58]}  Rad8 {[%clk 0:01:38]} 19. Nxe6 {[%clk 0:01:49]}  Nxe6 {[%clk 0:01:37]} 20. Bxd6 {[%clk 0:01:47]}  Bxd6 {[%clk 0:01:18]} 21. Rxd6 {[%clk 0:01:48]}  Rxd6 {[%clk 0:01:19]} 22. Qxd6 {[%clk 0:01:49]}  Rd8 {[%clk 0:01:19]} 23. Qg3 {[%clk 0:01:32]}  Rd2 {[%clk 0:01:18]} 24. Re2 {[%clk 0:01:23]}  Rd1 {[%clk 0:01:16]} 25. Qb8+ {[%clk 0:01:17]}  Kh7 {[%clk 0:01:15]} 26. Qe5 {[%clk 0:01:16]}  Nf4 {[%clk 0:01:10]} 27. Re1 {[%clk 0:00:42]}  Qxe5 {[%clk 0:00:54]} 28. Rxe5 {[%clk 0:00:43]}  Nd3 {[%clk 0:00:55]} 29. g3 {[%clk 0:00:16]}  Nxe5 {[%clk 0:00:53]} 0-1


[Site "https://www.chess.com"]

[Event "Late Titled Tuesday Blitz February 8 2022"]
[White "Svane, Rasmus"]
[Black "Sadhwani, Raunak"]
[WhiteFideId "4657101"]
[BlackFideId "35093487"]
[WhiteElo "2645"]
[BlackElo "2616"]
[Result "1-0"]
[Round "09"]
[TimeControl "180+1"]
[Date "2022.02.08"]
[WhiteClock "0:00:07"]
[BlackClock "0:00:11"]

1. Nf3 {[%clk 0:03:00]}  d5 {[%clk 0:02:56]} 2. g3 {[%clk 0:03:01]}  Nc6 {[%clk 0:02:56]} 3. d4 {[%clk 0:03:01]}  Bf5 {[%clk 0:02:57]} 4. Bg2 {[%clk 0:03:01]}  Nb4 {[%clk 0:02:57]} 5. Na3 {[%clk 0:03:00]}  e6 {[%clk 0:02:57]} 6. O-O {[%clk 0:03:00]}  Be7 {[%clk 0:02:57]} 7. c3 {[%clk 0:03:00]}  Nc6 {[%clk 0:02:56]} 8. Qb3 {[%clk 0:02:59]}  Rb8 {[%clk 0:02:56]} 9. Re1 {[%clk 0:03:00]}  Nf6 {[%clk 0:02:56]} 10. Bg5 {[%clk 0:02:59]}  O-O {[%clk 0:02:53]} 11. Bxf6 {[%clk 0:02:59]}  Bxf6 {[%clk 0:02:54]} 12. Nd2 {[%clk 0:03:00]}  Be7 {[%clk 0:02:39]} 13. e4 {[%clk 0:02:57]}  dxe4 {[%clk 0:02:40]} 14. Nxe4 {[%clk 0:02:58]}  a6 {[%clk 0:02:31]} 15. Nc4 {[%clk 0:02:56]}  b5 {[%clk 0:02:28]} 16. Ne3 {[%clk 0:02:55]}  Bg6 {[%clk 0:02:28]} 17. Rad1 {[%clk 0:02:52]}  Na5 {[%clk 0:02:26]} 18. Qc2 {[%clk 0:02:50]}  c6 {[%clk 0:02:27]} 19. Qe2 {[%clk 0:02:48]}  Nb7 {[%clk 0:02:23]} 20. h4 {[%clk 0:02:47]}  h6 {[%clk 0:02:21]} 21. Ng4 {[%clk 0:02:34]}  Bh5 {[%clk 0:02:01]} 22. Nxh6+ {[%clk 0:02:33]}  gxh6 {[%clk 0:01:59]} 23. Qxh5 {[%clk 0:02:33]}  Kg7 {[%clk 0:02:00]} 24. Nc5 {[%clk 0:02:01]}  Nxc5 {[%clk 0:01:55]} 25. dxc5 {[%clk 0:02:02]}  Qc7 {[%clk 0:01:55]} 26. Rd4 {[%clk 0:02:02]}  Rh8 {[%clk 0:01:40]} 27. Rg4+ {[%clk 0:01:41]}  Kf8 {[%clk 0:01:40]} 28. Rf4 {[%clk 0:01:41]}  Rh7 {[%clk 0:01:40]} 29. Bh3 {[%clk 0:00:50]}  Kg8 {[%clk 0:01:32]} 30. Bxe6 {[%clk 0:00:32]}  fxe6 {[%clk 0:01:28]} 31. Rxe6 {[%clk 0:00:32]}  Bf8 {[%clk 0:01:08]} 32. Rg6+ {[%clk 0:00:19]}  Bg7 {[%clk 0:01:01]} 33. Qf3 {[%clk 0:00:19]}  Rc8 {[%clk 0:00:52]} 34. Rff6 {[%clk 0:00:20]}  Qd7 {[%clk 0:00:46]} 35. Rxc6 {[%clk 0:00:17]}  Rf8 {[%clk 0:00:46]} 36. Qe2 {[%clk 0:00:13]}  Kh8 {[%clk 0:00:26]} 37. Rcd6 {[%clk 0:00:13]}  Qf5 {[%clk 0:00:26]} 38. c6 {[%clk 0:00:11]}  Be5 {[%clk 0:00:26]} 39. Rde6 {[%clk 0:00:09]}  Bc7 {[%clk 0:00:19]} 40. Qe3 {[%clk 0:00:10]}  Bd8 {[%clk 0:00:11]} 41. Qd4+ {[%clk 0:00:07]} 1-0


[Site "https://www.chess.com"]